[Event "January 2 Late 2024"]
[Site "https://www.chess.com"]
[Date "2024.01.02"]
[Round "7"]
[White "Mekhitarian, Krikor Sevag"]
[Black "Pinero Rodriguez, Carlos Jose"]
[Result "1-0"]
[Board "66"]
[TimeControl "180+1"]
[WhiteFideId "2107660"]
[BlackFideId "3901726"]
[WhiteElo "2826"]
[BlackElo "2547"]
[WhiteTeam "BRA"]
[BlackTeam "VEN"]
[WhiteClock "0:00:04"]
[BlackClock "0:00:02"]

1. Nf3 {[%clk 0:03:00]}  Nf6 {[%clk 0:02:58]} 2. c4 {[%clk 0:02:59]}  g6 {[%clk 0:02:58]} 3. Nc3 {[%clk 0:02:59]}  Bg7 {[%clk 0:02:59]} 4. e4 {[%clk 0:03:00]}  d6 {[%clk 0:02:59]} 5. d4 {[%clk 0:03:00]}  O-O {[%clk 0:03:00]} 6. h3 {[%clk 0:03:00]}  e5 {[%clk 0:02:59]} 7. d5 {[%clk 0:02:57]}  a5 {[%clk 0:02:58]} 8. g4 {[%clk 0:02:56]}  Na6 {[%clk 0:02:55]} 9. Be3 {[%clk 0:02:56]}  Nd7 {[%clk 0:02:53]} 10. a3 {[%clk 0:02:54]}  Ndc5 {[%clk 0:02:44]} 11. b4 {[%clk 0:02:50]}  Nd7 {[%clk 0:02:27]} 12. Rb1 {[%clk 0:02:50]}  axb4 {[%clk 0:01:59]} 13. axb4 {[%clk 0:02:49]}  f5 {[%clk 0:02:00]} 14. gxf5 {[%clk 0:02:38]}  gxf5 {[%clk 0:02:00]} 15. exf5 {[%clk 0:02:37]}  Nf6 {[%clk 0:01:48]} 16. Qc2 {[%clk 0:01:58]}  Nh5 {[%clk 0:00:51]} 17. Bd3 {[%clk 0:01:46]}  Nf4 {[%clk 0:00:43]} 18. Be4 {[%clk 0:01:42]}  Qf6 {[%clk 0:00:30]} 19. Kd2 {[%clk 0:01:16]}  Bh6 {[%clk 0:00:22]} 20. h4 {[%clk 0:01:06]}  Bxf5 {[%clk 0:00:21]} 21. Bxf5 {[%clk 0:00:40]}  Qxf5 {[%clk 0:00:21]} 22. Qxf5 {[%clk 0:00:40]}  Rxf5 {[%clk 0:00:22]} 23. Ne4 {[%clk 0:00:37]}  Raf8 {[%clk 0:00:21]} 24. Nfg5 {[%clk 0:00:34]}  Kh8 {[%clk 0:00:16]} 25. b5 {[%clk 0:00:27]}  Nb8 {[%clk 0:00:15]} 26. Ra1 {[%clk 0:00:22]}  Nd7 {[%clk 0:00:15]} 27. Ra7 {[%clk 0:00:22]}  Ng2 {[%clk 0:00:13]} 28. Rxb7 {[%clk 0:00:19]}  Nxe3 {[%clk 0:00:13]} 29. Kxe3 {[%clk 0:00:18]}  Rf3+ {[%clk 0:00:11]} 30. Ke2 {[%clk 0:00:17]}  Rb3 {[%clk 0:00:10]} 31. Rxc7 {[%clk 0:00:17]}  Rb2+ {[%clk 0:00:09]} 32. Kf1 {[%clk 0:00:18]}  Nf6 {[%clk 0:00:08]} 33. Rf7 {[%clk 0:00:08]}  Rxf7 {[%clk 0:00:06]} 34. Nxf7+ {[%clk 0:00:08]}  Kg7 {[%clk 0:00:07]} 35. Nxf6 {[%clk 0:00:08]}  Kxf7 {[%clk 0:00:06]} 36. Ne4 {[%clk 0:00:07]}  Ke7 {[%clk 0:00:05]} 37. Rh3 {[%clk 0:00:07]}  Bf4 {[%clk 0:00:06]} 38. h5 {[%clk 0:00:05]}  h6 {[%clk 0:00:05]} 39. Ra3 {[%clk 0:00:05]}  Rb1+ {[%clk 0:00:05]} 40. Kg2 {[%clk 0:00:05]}  Rc1 {[%clk 0:00:06]} 41. Ra7+ {[%clk 0:00:04]}  Kf8 {[%clk 0:00:04]} 42. Nxd6 {[%clk 0:00:04]}  Rc3 {[%clk 0:00:05]} 43. b6 {[%clk 0:00:03]}  Rb3 {[%clk 0:00:03]} 44. b7 {[%clk 0:00:04]}  e4 {[%clk 0:00:04]} 45. Nxe4 {[%clk 0:00:04]}  Bb8 {[%clk 0:00:04]} 46. Ra8 {[%clk 0:00:03]}  Rxb7 {[%clk 0:00:05]} 47. Nc5 {[%clk 0:00:04]}  Rb1 {[%clk 0:00:02]} 48. Rxb8+ {[%clk 0:00:04]} 1-0

[Event "January 2 Late 2024"]
[Site "https://www.chess.com"]
[Date "2024.01.02"]
[Round "7"]
[White "Durarbayli, Vasif"]
[Black "Rama, Tejas"]
[Result "1-0"]
[Board "68"]
[TimeControl "180+1"]
[WhiteFideId "13402935"]
[BlackFideId "30907381"]
[WhiteElo "2802"]
[BlackElo "2558"]
[WhiteTeam "AZE"]
[BlackTeam "USA"]
[WhiteClock "0:00:14"]
[BlackClock "0:00:00"]

1. e4 {[%clk 0:03:00]}  e5 {[%clk 0:02:58]} 2. Nf3 {[%clk 0:03:00]}  Nc6 {[%clk 0:02:58]} 3. Bc4 {[%clk 0:03:00]}  Bc5 {[%clk 0:02:57]} 4. c3 {[%clk 0:02:59]}  Nf6 {[%clk 0:02:57]} 5. d3 {[%clk 0:03:00]}  O-O {[%clk 0:02:56]} 6. O-O {[%clk 0:03:00]}  d5 {[%clk 0:02:56]} 7. exd5 {[%clk 0:03:01]}  Nxd5 {[%clk 0:02:56]} 8. a4 {[%clk 0:03:00]}  Bf5 {[%clk 0:02:50]} 9. b4 {[%clk 0:02:55]}  Be7 {[%clk 0:02:32]} 10. Bb5 {[%clk 0:02:38]}  f6 {[%clk 0:02:00]} 11. Qb3 {[%clk 0:02:26]}  Kh8 {[%clk 0:01:57]} 12. Re1 {[%clk 0:02:17]}  a5 {[%clk 0:01:41]} 13. Bc4 {[%clk 0:02:09]}  Nb6 {[%clk 0:01:35]} 14. b5 {[%clk 0:02:08]}  Nxc4 {[%clk 0:01:27]} 15. dxc4 {[%clk 0:01:56]}  Nb8 {[%clk 0:01:24]} 16. Ba3 {[%clk 0:01:46]}  Nd7 {[%clk 0:01:09]} 17. Nd4 {[%clk 0:01:45]}  Bxb1 {[%clk 0:00:50]} 18. Ne6 {[%clk 0:01:29]}  Qc8 {[%clk 0:00:37]} 19. Nxf8 {[%clk 0:01:12]}  Qxf8 {[%clk 0:00:31]} 20. Bxe7 {[%clk 0:01:12]}  Qxe7 {[%clk 0:00:31]} 21. Qxb1 {[%clk 0:01:11]}  Qc5 {[%clk 0:00:30]} 22. Qe4 {[%clk 0:01:09]}  Rb8 {[%clk 0:00:27]} 23. Rad1 {[%clk 0:01:08]}  Qe7 {[%clk 0:00:18]} 24. Re3 {[%clk 0:00:58]}  Nc5 {[%clk 0:00:17]} 25. Qc2 {[%clk 0:00:58]}  Rd8 {[%clk 0:00:15]} 26. Rd5 {[%clk 0:00:44]}  c6 {[%clk 0:00:11]} 27. Rxd8+ {[%clk 0:00:44]}  Qxd8 {[%clk 0:00:11]} 28. Re1 {[%clk 0:00:42]}  Qg8 {[%clk 0:00:09]} 29. Rd1 {[%clk 0:00:39]}  g6 {[%clk 0:00:06]} 30. Qd2 {[%clk 0:00:29]}  Qxc4 {[%clk 0:00:05]} 31. Qd8+ {[%clk 0:00:25]}  Kg7 {[%clk 0:00:06]} 32. Qe7+ {[%clk 0:00:26]}  Kh6 {[%clk 0:00:05]} 33. Qxf6 {[%clk 0:00:22]}  Ne4 {[%clk 0:00:02]} 34. Qf8+ {[%clk 0:00:21]}  Kg5 {[%clk 0:00:01]} 35. h4+ {[%clk 0:00:20]}  Kh5 {[%clk 0:00:00]} 36. Rd7 {[%clk 0:00:14]} 1-0

[Event "January 2 Late 2024"]
[Site "https://www.chess.com"]
[Date "2024.01.02"]
[Round "7"]
[White "Hamitevici, Vladimir"]
[Black "Garcia Almaguer, Juan Manuel"]
[Result "1-0"]
[Board "71"]
[TimeControl "180+1"]
[WhiteFideId "13902393"]
[BlackFideId "5110491"]
[WhiteElo "2654"]
[BlackElo "2496"]
[WhiteTeam "MDA"]
[BlackTeam "MEX"]
[WhiteClock "0:00:22"]
[BlackClock "0:01:01"]

1. d4 {[%clk 0:03:00]}  d5 {[%clk 0:02:58]} 2. c4 {[%clk 0:02:59]}  e6 {[%clk 0:02:59]} 3. Nf3 {[%clk 0:02:57]}  Ne7 {[%clk 0:02:59]} 4. Nc3 {[%clk 0:02:56]}  Nbc6 {[%clk 0:02:56]} 5. a3 {[%clk 0:02:45]}  a5 {[%clk 0:02:53]} 6. Bf4 {[%clk 0:02:38]}  Ng6 {[%clk 0:02:51]} 7. Bg3 {[%clk 0:02:33]}  dxc4 {[%clk 0:02:33]} 8. e4 {[%clk 0:02:24]}  Bd6 {[%clk 0:02:32]} 9. Bxc4 {[%clk 0:02:15]}  O-O {[%clk 0:02:24]} 10. e5 {[%clk 0:02:08]}  Be7 {[%clk 0:02:22]} 11. h4 {[%clk 0:02:08]}  Re8 {[%clk 0:02:07]} 12. Ne4 {[%clk 0:01:40]}  h5 {[%clk 0:01:55]} 13. Rc1 {[%clk 0:01:11]}  f5 {[%clk 0:01:40]} 14. Neg5 {[%clk 0:01:01]}  Bxg5 {[%clk 0:01:28]} 15. Nxg5 {[%clk 0:00:41]}  Qxd4 {[%clk 0:01:22]} 16. Qxh5 {[%clk 0:00:39]}  Ncxe5 {[%clk 0:01:22]} 17. O-O {[%clk 0:00:36]}  Qg4 {[%clk 0:01:14]} 18. Qh7+ {[%clk 0:00:36]}  Kf8 {[%clk 0:01:14]} 19. Bxe5 {[%clk 0:00:26]}  Nxe5 {[%clk 0:01:08]} 20. Qh8+ {[%clk 0:00:25]}  Ke7 {[%clk 0:01:07]} 21. Qxg7+ {[%clk 0:00:25]}  Kd6 {[%clk 0:01:01]} 22. Rfd1+ {[%clk 0:00:22]} 1-0

[Event "January 2 Late 2024"]
[Site "https://www.chess.com"]
[Date "2024.01.02"]
[Round "7"]
[White "Rojas Alarcon, Julian Antonio"]
[Black "Suvorov, Alexander"]
[Result "1-0"]
[Board "73"]
[TimeControl "180+1"]
[WhiteFideId "5107407"]
[BlackFideId "12977063"]
[WhiteElo "2640"]
[BlackElo "2491"]
[WhiteTeam "MEX"]
[BlackTeam "GER"]
[WhiteClock "0:01:13"]
[BlackClock "0:00:05"]

1. e4 {[%clk 0:03:00]}  d6 {[%clk 0:02:57]} 2. d4 {[%clk 0:03:00]}  Nf6 {[%clk 0:02:58]} 3. Nc3 {[%clk 0:03:00]}  Nbd7 {[%clk 0:02:58]} 4. Nf3 {[%clk 0:02:58]}  e5 {[%clk 0:02:58]} 5. Bc4 {[%clk 0:02:58]}  Be7 {[%clk 0:02:58]} 6. g4 {[%clk 0:02:58]}  O-O {[%clk 0:02:52]} 7. g5 {[%clk 0:02:58]}  Nh5 {[%clk 0:02:49]} 8. h4 {[%clk 0:02:58]}  g6 {[%clk 0:02:43]} 9. Be3 {[%clk 0:02:53]}  c6 {[%clk 0:02:39]} 10. a4 {[%clk 0:02:51]}  Qc7 {[%clk 0:02:11]} 11. Qd2 {[%clk 0:02:48]}  a6 {[%clk 0:02:04]} 12. Bb3 {[%clk 0:02:46]}  Rb8 {[%clk 0:02:03]} 13. a5 {[%clk 0:02:43]}  exd4 {[%clk 0:02:01]} 14. Nxd4 {[%clk 0:02:35]}  Nc5 {[%clk 0:01:42]} 15. Ba2 {[%clk 0:02:35]}  b5 {[%clk 0:01:20]} 16. axb6 {[%clk 0:02:30]}  Rxb6 {[%clk 0:01:21]} 17. Rb1 {[%clk 0:02:28]}  Qb8 {[%clk 0:01:15]} 18. Qc1 {[%clk 0:02:15]}  Bd7 {[%clk 0:01:12]} 19. f3 {[%clk 0:02:10]}  Rb4 {[%clk 0:01:02]} 20. Kf2 {[%clk 0:02:00]}  Kg7 {[%clk 0:00:59]} 21. Nde2 {[%clk 0:01:55]}  f6 {[%clk 0:00:56]} 22. Qd2 {[%clk 0:01:54]}  Ne6 {[%clk 0:00:38]} 23. gxf6+ {[%clk 0:01:48]}  Bxf6 {[%clk 0:00:39]} 24. Bh6+ {[%clk 0:01:47]}  Kh8 {[%clk 0:00:35]} 25. Bxf8 {[%clk 0:01:47]}  Qxf8 {[%clk 0:00:36]} 26. Nd5 {[%clk 0:01:41]}  cxd5 {[%clk 0:00:24]} 27. Qxb4 {[%clk 0:01:40]}  Qe7 {[%clk 0:00:17]} 28. exd5 {[%clk 0:01:35]}  Neg7 {[%clk 0:00:16]} 29. Rbe1 {[%clk 0:01:35]}  Qd8 {[%clk 0:00:15]} 30. Nf4 {[%clk 0:01:32]}  Be5 {[%clk 0:00:10]} 31. Nxh5 {[%clk 0:01:30]}  Nxh5 {[%clk 0:00:11]} 32. Reg1 {[%clk 0:01:28]}  Qf6 {[%clk 0:00:10]} 33. c3 {[%clk 0:01:24]}  Bf5 {[%clk 0:00:06]} 34. Bb1 {[%clk 0:01:19]}  Kg7 {[%clk 0:00:06]} 35. Bxf5 {[%clk 0:01:18]}  Qxf5 {[%clk 0:00:07]} 36. Qe4 {[%clk 0:01:16]}  Qf6 {[%clk 0:00:06]} 37. Rg4 {[%clk 0:01:14]}  Qf5 {[%clk 0:00:05]} 38. Qxf5 {[%clk 0:01:13]} 1-0

[Event "January 2 Late 2024"]
[Site "https://www.chess.com"]
[Date "2024.01.02"]
[Round "7"]
[White "Espinoza Villanueva, Rodrigo"]
[Black "Mizzi, Jack"]
[Result "1-0"]
[Board "74"]
[TimeControl "180+1"]
[WhiteFideId "5140188"]
[BlackFideId "5602521"]
[WhiteElo "2637"]
[BlackElo "2456"]
[WhiteTeam "MEX"]
[BlackTeam "MLT"]
[WhiteClock "0:00:39"]
[BlackClock "0:00:00"]

1. Nf3 {[%clk 0:02:59]}  Nf6 {[%clk 0:02:58]} 2. g3 {[%clk 0:02:54]}  e6 {[%clk 0:02:58]} 3. Bg2 {[%clk 0:02:53]}  d5 {[%clk 0:02:58]} 4. O-O {[%clk 0:02:54]}  Be7 {[%clk 0:02:59]} 5. d3 {[%clk 0:02:53]}  O-O {[%clk 0:02:59]} 6. Nbd2 {[%clk 0:02:53]}  b6 {[%clk 0:02:59]} 7. e4 {[%clk 0:02:52]}  dxe4 {[%clk 0:02:59]} 8. dxe4 {[%clk 0:02:52]}  Bb7 {[%clk 0:03:00]} 9. Re1 {[%clk 0:02:52]}  Nbd7 {[%clk 0:02:59]} 10. e5 {[%clk 0:02:49]}  Ne8 {[%clk 0:02:57]} 11. c3 {[%clk 0:02:45]}  Nc5 {[%clk 0:02:57]} 12. Qe2 {[%clk 0:02:40]}  Nd3 {[%clk 0:02:52]} 13. Rd1 {[%clk 0:02:37]}  Ba6 {[%clk 0:02:47]} 14. Nd4 {[%clk 0:02:17]}  Bc5 {[%clk 0:02:25]} 15. N2b3 {[%clk 0:02:02]}  Bxd4 {[%clk 0:02:11]} 16. Nxd4 {[%clk 0:02:03]}  c5 {[%clk 0:02:12]} 17. Nc6 {[%clk 0:01:58]}  Nxc1 {[%clk 0:02:01]} 18. Raxc1 {[%clk 0:01:57]}  Bxe2 {[%clk 0:01:53]} 19. Rxd8 {[%clk 0:01:56]}  Rxd8 {[%clk 0:01:51]} 20. Nxd8 {[%clk 0:01:57]}  Nc7 {[%clk 0:01:48]} 21. Nc6 {[%clk 0:01:57]}  Bc4 {[%clk 0:01:35]} 22. a4 {[%clk 0:01:54]}  Bd5 {[%clk 0:01:27]} 23. Ne7+ {[%clk 0:01:51]}  Kh8 {[%clk 0:01:27]} 24. Nxd5 {[%clk 0:01:48]}  exd5 {[%clk 0:01:26]} 25. f4 {[%clk 0:01:49]}  Re8 {[%clk 0:01:13]} 26. Kf2 {[%clk 0:01:45]}  Kg8 {[%clk 0:01:10]} 27. Rd1 {[%clk 0:01:43]}  Rd8 {[%clk 0:01:10]} 28. Ke3 {[%clk 0:01:39]}  Kf8 {[%clk 0:01:09]} 29. b4 {[%clk 0:01:36]}  Ke7 {[%clk 0:01:06]} 30. bxc5 {[%clk 0:01:33]}  bxc5 {[%clk 0:01:06]} 31. Rb1 {[%clk 0:01:34]}  d4+ {[%clk 0:00:26]} 32. Kd3 {[%clk 0:01:32]}  dxc3+ {[%clk 0:00:22]} 33. Kxc3 {[%clk 0:01:33]}  Rd7 {[%clk 0:00:19]} 34. Bc6 {[%clk 0:01:23]}  Rd4 {[%clk 0:00:14]} 35. Rb7 {[%clk 0:01:23]}  Kd8 {[%clk 0:00:13]} 36. a5 {[%clk 0:01:18]}  a6 {[%clk 0:00:12]} 37. Rb6 {[%clk 0:01:16]}  Rd1 {[%clk 0:00:11]} 38. Bb7 {[%clk 0:01:10]}  Ra1 {[%clk 0:00:11]} 39. Bxa6 {[%clk 0:01:09]}  Nd5+ {[%clk 0:00:11]} 40. Kb2 {[%clk 0:01:04]}  Rxa5 {[%clk 0:00:06]} 41. Rd6+ {[%clk 0:01:03]}  Kc7 {[%clk 0:00:06]} 42. Rxd5 {[%clk 0:00:58]}  Rxa6 {[%clk 0:00:06]} 43. Rxc5+ {[%clk 0:00:58]}  Kd7 {[%clk 0:00:07]} 44. Kc3 {[%clk 0:00:56]}  Ra2 {[%clk 0:00:06]} 45. Rd5+ {[%clk 0:00:52]}  Ke6 {[%clk 0:00:06]} 46. Rd2 {[%clk 0:00:53]}  Ra3+ {[%clk 0:00:04]} 47. Kd4 {[%clk 0:00:53]}  Kf5 {[%clk 0:00:03]} 48. Kd5 {[%clk 0:00:49]}  Ra8 {[%clk 0:00:03]} 49. Kc6 {[%clk 0:00:47]}  Ra7 {[%clk 0:00:02]} 50. Rd7 {[%clk 0:00:42]}  Ra6+ {[%clk 0:00:01]} 51. Kb5 {[%clk 0:00:39]}  Ra2 {[%clk 0:00:00]} 52. Rxf7+ {[%clk 0:00:39]} 1-0

[Event "January 2 Late 2024"]
[Site "https://www.chess.com"]
[Date "2024.01.02"]
[Round "7"]
[White "Khatoev, Eduard"]
[Black "Gabdushev, Ruslan"]
[Result "1-0"]
[Board "75"]
[TimeControl "180+1"]
[WhiteFideId "24145076"]
[BlackFideId "4137833"]
[WhiteElo "2635"]
[BlackElo "2440"]
[WhiteTeam "RUS"]
[BlackTeam "RUS"]
[WhiteClock "0:01:32"]
[BlackClock "0:00:00"]

1. Nf3 {[%clk 0:03:00]}  g6 {[%clk 0:02:58]} 2. e3 {[%clk 0:03:01]}  Bg7 {[%clk 0:02:58]} 3. Nc3 {[%clk 0:03:01]}  d6 {[%clk 0:02:57]} 4. b3 {[%clk 0:03:01]}  e5 {[%clk 0:02:55]} 5. Bb2 {[%clk 0:03:00]}  Nf6 {[%clk 0:02:52]} 6. d4 {[%clk 0:02:59]}  Nbd7 {[%clk 0:02:51]} 7. Be2 {[%clk 0:02:58]}  O-O {[%clk 0:02:49]} 8. O-O {[%clk 0:02:58]}  Re8 {[%clk 0:02:49]} 9. Qd2 {[%clk 0:02:57]}  e4 {[%clk 0:02:45]} 10. Ng5 {[%clk 0:02:56]}  h6 {[%clk 0:02:40]} 11. Nh3 {[%clk 0:02:56]}  Nf8 {[%clk 0:02:39]} 12. Nf4 {[%clk 0:02:54]}  c6 {[%clk 0:02:35]} 13. a3 {[%clk 0:02:47]}  g5 {[%clk 0:02:34]} 14. Nh5 {[%clk 0:02:47]}  Ng6 {[%clk 0:02:31]} 15. Nxg7 {[%clk 0:02:46]}  Kxg7 {[%clk 0:02:30]} 16. d5 {[%clk 0:02:46]}  c5 {[%clk 0:02:24]} 17. b4 {[%clk 0:02:46]}  b6 {[%clk 0:02:20]} 18. bxc5 {[%clk 0:02:44]}  bxc5 {[%clk 0:02:20]} 19. Rab1 {[%clk 0:02:44]}  Kh7 {[%clk 0:02:11]} 20. f3 {[%clk 0:02:40]}  exf3 {[%clk 0:02:02]} 21. Rxf3 {[%clk 0:02:38]}  Ne5 {[%clk 0:01:51]} 22. Rf2 {[%clk 0:02:33]}  Rb8 {[%clk 0:01:38]} 23. Bd3+ {[%clk 0:02:29]}  Kg7 {[%clk 0:01:36]} 24. h3 {[%clk 0:02:01]}  Re7 {[%clk 0:01:02]} 25. Ne4 {[%clk 0:01:59]}  Nxe4 {[%clk 0:00:59]} 26. Bxe4 {[%clk 0:01:58]}  Reb7 {[%clk 0:00:52]} 27. Bxe5+ {[%clk 0:01:57]}  dxe5 {[%clk 0:00:52]} 28. Rbf1 {[%clk 0:01:57]}  Qd6 {[%clk 0:00:25]} 29. Bf5 {[%clk 0:01:43]}  Rb1 {[%clk 0:00:20]} 30. Bxc8 {[%clk 0:01:42]}  Rxf1+ {[%clk 0:00:19]} 31. Rxf1 {[%clk 0:01:42]}  Rxc8 {[%clk 0:00:20]} 32. c4 {[%clk 0:01:41]}  Rb8 {[%clk 0:00:16]} 33. e4 {[%clk 0:01:40]}  f6 {[%clk 0:00:11]} 34. Qc3 {[%clk 0:01:38]}  Qb6 {[%clk 0:00:09]} 35. Rd1 {[%clk 0:01:37]}  Rd8 {[%clk 0:00:08]} 36. Qc1 {[%clk 0:01:35]}  Kg6 {[%clk 0:00:07]} 37. Qc2 {[%clk 0:01:34]}  Rd6 {[%clk 0:00:04]} 38. g4 {[%clk 0:01:33]}  Qa5 {[%clk 0:00:00]} 39. a4 {[%clk 0:01:32]} 1-0

[Event "January 2 Late 2024"]
[Site "https://www.chess.com"]
[Date "2024.01.02"]
[Round "7"]
[White "Jing, Andrew"]
[Black "Kochiev, Ivan"]
[Result "0-1"]
[Board "81"]
[TimeControl "180+1"]
[WhiteFideId "30984076"]
[BlackFideId "2917890"]
[WhiteElo "2175"]
[BlackElo "2561"]
[WhiteTeam "USA"]
[BlackTeam "BUL"]
[WhiteClock "0:01:12"]
[BlackClock "0:00:22"]

1. d4 {[%clk 0:03:00]}  Nf6 {[%clk 0:02:59]} 2. c4 {[%clk 0:03:00]}  e6 {[%clk 0:02:59]} 3. g3 {[%clk 0:03:00]}  c5 {[%clk 0:03:00]} 4. d5 {[%clk 0:03:00]}  exd5 {[%clk 0:03:01]} 5. cxd5 {[%clk 0:03:00]}  d6 {[%clk 0:03:01]} 6. Bg2 {[%clk 0:02:59]}  g6 {[%clk 0:03:02]} 7. Nc3 {[%clk 0:02:59]}  Bg7 {[%clk 0:03:03]} 8. Nf3 {[%clk 0:03:00]}  O-O {[%clk 0:03:03]} 9. O-O {[%clk 0:03:00]}  Na6 {[%clk 0:03:04]} 10. Bf4 {[%clk 0:02:59]}  Nc7 {[%clk 0:03:04]} 11. a4 {[%clk 0:02:56]}  Rb8 {[%clk 0:02:59]} 12. Nd2 {[%clk 0:02:53]}  Nh5 {[%clk 0:02:52]} 13. Be3 {[%clk 0:02:40]}  f5 {[%clk 0:02:50]} 14. Nc4 {[%clk 0:02:35]}  b6 {[%clk 0:02:44]} 15. f4 {[%clk 0:02:23]}  Ba6 {[%clk 0:02:41]} 16. Na3 {[%clk 0:02:15]}  Re8 {[%clk 0:02:40]} 17. Bf2 {[%clk 0:02:15]}  Bxc3 {[%clk 0:02:39]} 18. bxc3 {[%clk 0:02:14]}  Bxe2 {[%clk 0:02:39]} 19. Qd2 {[%clk 0:02:14]}  Bxf1 {[%clk 0:02:39]} 20. Bxf1 {[%clk 0:02:15]}  Nf6 {[%clk 0:02:36]} 21. Nb5 {[%clk 0:02:11]}  Ne4 {[%clk 0:02:15]} 22. Qc2 {[%clk 0:02:08]}  Nxf2 {[%clk 0:02:00]} 23. Qxf2 {[%clk 0:02:07]}  Rb7 {[%clk 0:02:01]} 24. Bd3 {[%clk 0:01:51]}  Kg7 {[%clk 0:01:42]} 25. c4 {[%clk 0:01:46]}  Qf6 {[%clk 0:01:30]} 26. Ra2 {[%clk 0:01:42]}  Nxb5 {[%clk 0:01:29]} 27. axb5 {[%clk 0:01:42]}  Rbe7 {[%clk 0:01:30]} 28. Kg2 {[%clk 0:01:41]}  Qc3 {[%clk 0:01:28]} 29. Be2 {[%clk 0:01:38]}  Qe3 {[%clk 0:00:50]} 30. Qf1 {[%clk 0:01:33]}  Kh6 {[%clk 0:00:39]} 31. Bf3 {[%clk 0:01:29]}  Qb3 {[%clk 0:00:30]} 32. Ra1 {[%clk 0:01:25]}  Qb2+ {[%clk 0:00:28]} 33. Kh3 {[%clk 0:01:24]}  Qc3 {[%clk 0:00:23]} 34. Qf2 {[%clk 0:01:12]}  Qxa1 {[%clk 0:00:22]} 0-1

[Event "January 2 Late 2024"]
[Site "https://www.chess.com"]
[Date "2024.01.02"]
[Round "7"]
[White "Shapiro, Viktor"]
[Black "Chirilov, James A"]
[Result "0-1"]
[Board "83"]
[TimeControl "180+1"]
[WhiteFideId "4175700"]
[BlackFideId "30976677"]
[WhiteElo "2501"]
[BlackElo "2775"]
[WhiteTeam "RUS"]
[BlackTeam "USA"]
[WhiteClock "0:00:16"]
[BlackClock "0:00:20"]

1. c4 {[%clk 0:03:00]}  Nf6 {[%clk 0:02:57]} 2. Nc3 {[%clk 0:03:01]}  e6 {[%clk 0:02:56]} 3. Nf3 {[%clk 0:03:01]}  d5 {[%clk 0:02:43]} 4. d4 {[%clk 0:03:00]}  dxc4 {[%clk 0:02:35]} 5. Qa4+ {[%clk 0:02:57]}  Nbd7 {[%clk 0:02:31]} 6. Qxc4 {[%clk 0:02:56]}  c5 {[%clk 0:02:29]} 7. g3 {[%clk 0:02:50]}  b6 {[%clk 0:02:23]} 8. Bg2 {[%clk 0:02:49]}  Bb7 {[%clk 0:02:24]} 9. O-O {[%clk 0:02:49]}  Be7 {[%clk 0:02:23]} 10. dxc5 {[%clk 0:02:48]}  Nxc5 {[%clk 0:02:19]} 11. Rd1 {[%clk 0:02:48]}  Qc8 {[%clk 0:02:18]} 12. Nb5 {[%clk 0:02:31]}  O-O {[%clk 0:02:13]} 13. Nd6 {[%clk 0:02:29]}  Bxd6 {[%clk 0:02:13]} 14. Rxd6 {[%clk 0:02:29]}  Bd5 {[%clk 0:02:08]} 15. Qh4 {[%clk 0:02:14]}  Nce4 {[%clk 0:01:54]} 16. Bf4 {[%clk 0:01:58]}  Nxd6 {[%clk 0:01:52]} 17. Bxd6 {[%clk 0:01:58]}  Re8 {[%clk 0:01:51]} 18. Be5 {[%clk 0:01:57]}  Nd7 {[%clk 0:01:40]} 19. Bc3 {[%clk 0:01:33]}  Qd8 {[%clk 0:01:37]} 20. Qf4 {[%clk 0:01:30]}  e5 {[%clk 0:01:28]} 21. Qe3 {[%clk 0:01:07]}  Qe7 {[%clk 0:01:25]} 22. Rd1 {[%clk 0:01:06]}  Bb7 {[%clk 0:01:17]} 23. Bh3 {[%clk 0:01:02]}  Bc6 {[%clk 0:01:09]} 24. Bxd7 {[%clk 0:00:54]}  Bxd7 {[%clk 0:01:10]} 25. Nxe5 {[%clk 0:00:53]}  Be6 {[%clk 0:01:06]} 26. Nc6 {[%clk 0:00:37]}  Qc5 {[%clk 0:00:31]} 27. Qf3 {[%clk 0:00:37]}  Bc4 {[%clk 0:00:23]} 28. e3 {[%clk 0:00:35]}  Rac8 {[%clk 0:00:20]} 29. Nd4 {[%clk 0:00:29]}  Qd5 {[%clk 0:00:20]} 30. Qg4 {[%clk 0:00:27]}  Qe4 {[%clk 0:00:20]} 31. Qg5 {[%clk 0:00:21]}  h6 {[%clk 0:00:20]} 32. Qh5 {[%clk 0:00:20]}  Bd5 {[%clk 0:00:19]} 33. Kf1 {[%clk 0:00:18]}  Qg2+ {[%clk 0:00:17]} 34. Ke2 {[%clk 0:00:18]}  Bc4+ {[%clk 0:00:17]} 35. Ke1 {[%clk 0:00:17]}  Qg1+ {[%clk 0:00:17]} 36. Kd2 {[%clk 0:00:18]}  Qxf2+ {[%clk 0:00:18]} 37. Kc1 {[%clk 0:00:17]}  Qxe3+ {[%clk 0:00:18]} 38. Kb1 {[%clk 0:00:18]}  Bd3+ {[%clk 0:00:19]} 39. Ka1 {[%clk 0:00:18]}  Bg6 {[%clk 0:00:20]} 40. Qh4 {[%clk 0:00:16]}  Rxc3 {[%clk 0:00:20]} 41. bxc3 {[%clk 0:00:16]}  Qxc3# {[%clk 0:00:20]} 0-1

[Event "January 2 Late 2024"]
[Site "https://www.chess.com"]
[Date "2024.01.02"]
[Round "7"]
[White "Carlsson, Ludvig"]
[Black "Gutierrez Olivares, Daniel"]
[Result "1-0"]
[Board "85"]
[TimeControl "180+1"]
[WhiteFideId "1727010"]
[BlackFideId "2264005"]
[WhiteElo "2698"]
[BlackElo "2493"]
[WhiteTeam "SWE"]
[BlackTeam "ESP"]
[WhiteClock "0:00:13"]
[BlackClock "0:00:01"]

1. e4 {[%clk 0:03:00]}  e6 {[%clk 0:02:59]} 2. d4 {[%clk 0:03:00]}  d5 {[%clk 0:02:58]} 3. exd5 {[%clk 0:03:00]}  exd5 {[%clk 0:02:58]} 4. Nf3 {[%clk 0:03:01]}  Nc6 {[%clk 0:02:57]} 5. Bd3 {[%clk 0:03:00]}  Bg4 {[%clk 0:02:55]} 6. c3 {[%clk 0:03:00]}  Bd6 {[%clk 0:02:54]} 7. O-O {[%clk 0:03:00]}  Nge7 {[%clk 0:02:55]} 8. Re1 {[%clk 0:02:59]}  f6 {[%clk 0:02:54]} 9. a4 {[%clk 0:02:55]}  a6 {[%clk 0:02:44]} 10. Na3 {[%clk 0:02:49]}  Qd7 {[%clk 0:02:43]} 11. b4 {[%clk 0:02:46]}  O-O {[%clk 0:02:40]} 12. Nc2 {[%clk 0:02:45]}  Bf5 {[%clk 0:02:27]} 13. Bf1 {[%clk 0:02:35]}  Ng6 {[%clk 0:02:18]} 14. Ne3 {[%clk 0:02:35]}  Be6 {[%clk 0:02:16]} 15. g3 {[%clk 0:02:33]}  Rae8 {[%clk 0:02:12]} 16. Bg2 {[%clk 0:02:30]}  Nce7 {[%clk 0:02:03]} 17. a5 {[%clk 0:02:27]}  h6 {[%clk 0:01:58]} 18. Bd2 {[%clk 0:02:25]}  f5 {[%clk 0:01:57]} 19. Nf1 {[%clk 0:02:16]}  f4 {[%clk 0:01:56]} 20. Ne5 {[%clk 0:02:05]}  Bxe5 {[%clk 0:01:54]} 21. dxe5 {[%clk 0:02:05]}  Nc6 {[%clk 0:01:40]} 22. Qh5 {[%clk 0:01:44]}  Kh7 {[%clk 0:01:33]} 23. gxf4 {[%clk 0:01:20]}  Bg4 {[%clk 0:01:22]} 24. e6 {[%clk 0:01:21]}  Bxe6 {[%clk 0:01:10]} 25. Ng3 {[%clk 0:01:12]}  Nce7 {[%clk 0:00:47]} 26. Rxe6 {[%clk 0:00:50]}  Qxe6 {[%clk 0:00:47]} 27. Re1 {[%clk 0:00:50]}  Qf6 {[%clk 0:00:44]} 28. f5 {[%clk 0:00:46]}  Nxf5 {[%clk 0:00:39]} 29. Rxe8 {[%clk 0:00:44]}  Nxg3 {[%clk 0:00:35]} 30. Rxf8 {[%clk 0:00:32]}  Nxh5 {[%clk 0:00:34]} 31. Rxf6 {[%clk 0:00:32]}  Nxf6 {[%clk 0:00:34]} 32. c4 {[%clk 0:00:29]}  c6 {[%clk 0:00:29]} 33. Bc3 {[%clk 0:00:23]}  Nf4 {[%clk 0:00:29]} 34. Bf3 {[%clk 0:00:21]}  Ne4 {[%clk 0:00:27]} 35. Bd4 {[%clk 0:00:19]}  Nd2 {[%clk 0:00:24]} 36. Bg4 {[%clk 0:00:15]}  Nxc4 {[%clk 0:00:21]} 37. Bc5 {[%clk 0:00:15]}  Nd3 {[%clk 0:00:20]} 38. Be7 {[%clk 0:00:14]}  g6 {[%clk 0:00:20]} 39. Bc8 {[%clk 0:00:14]}  Nce5 {[%clk 0:00:12]} 40. Bxb7 {[%clk 0:00:13]}  Kg7 {[%clk 0:00:11]} 41. Bxa6 {[%clk 0:00:13]}  Ne1 {[%clk 0:00:10]} 42. Bb7 {[%clk 0:00:12]}  N1f3+ {[%clk 0:00:11]} 43. Kh1 {[%clk 0:00:12]}  Nd4 {[%clk 0:00:11]} 44. a6 {[%clk 0:00:12]}  Nd7 {[%clk 0:00:10]} 45. a7 {[%clk 0:00:12]}  Nb6 {[%clk 0:00:01]} 46. Bc5 {[%clk 0:00:13]} 1-0